bitfinex-derivatives/quotes_BTCF0:USTF0_20251109
["timestamp","ask_amount","ask_price","bid_price","bid_amount"]
[1762667027454,9.96e-05,101870.0,101860.0,0.60820852]
[1762667031572,9.96e-05,101870.0,101860.0,0.57308943]
[1762667031871,9.96e-05,101870.0,101860.0,0.68622642]
[1762667032168,1.456e-05,101870.0,101860.0,0.70358767]
[1762667033856,1.456e-05,101870.0,101860.0,0.85188767]
[1762667034262,1.456e-05,101870.0,101860.0,0.73875068]
[1762667036164,1.456e-05,101870.0,101860.0,0.6684983]
[1762667036670,1.456e-05,101870.0,101860.0,0.73875068]
[1762667037672,1.456e-05,101870.0,101860.0,0.85188767]
[1762667038173,0.03556705,101880.0,101870.0,0.1556886]
[1762667038375,0.03556705,101880.0,101870.0,0.60457346]
[1762667039370,0.03556705,101880.0,101870.0,0.60557346]
[1762667039769,0.03556705,101880.0,101870.0,0.60657346]
[1762667040377,0.03556705,101880.0,101870.0,0.69142411]
[1762667041477,0.01785705,101880.0,101870.0,0.69142411]
[1762667042376,0.00014705,101880.0,101870.0,0.69142411]
[1762667042567,0.00014705,101880.0,101870.0,0.60657346]
[1762667042767,0.1204177,101880.0,101870.0,0.24577346]
[1762667042972,0.1204177,101880.0,101870.0,0.19292254]
[1762667043172,0.2186067,101880.0,101870.0,0.19292254]
[1762667043880,0.5794067,101880.0,101870.0,0.19292254]
[1762667046889,0.66425735,101880.0,101870.0,0.19292254]
[1762667049791,0.5794067,101880.0,101870.0,0.19292254]
[1762667050591,0.66425735,101880.0,101870.0,0.19292254]
[1762667052695,0.66425735,101880.0,101870.0,0.09472394]
[1762667052992,0.67075735,101880.0,101870.0,0.19292254]
[1762667054489,0.66425735,101880.0,101870.0,0.19292254]
[1762667060999,0.66425735,101880.0,101870.0,0.09472394]
[1762667061598,0.66425735,101880.0,101870.0,0.19292264]
[1762667062001,0.66425735,101880.0,101870.0,0.09472394]
[1762667065405,0.66425735,101880.0,101870.0,0.19292264]
[1762667066801,0.30345735,101880.0,101870.0,0.19292264]
[1762667067003,0.66425735,101880.0,101870.0,0.19292264]
[1762667071005,0.30345735,101880.0,101870.0,0.19292264]
[1762667071200,0.66425735,101880.0,101870.0,0.19292264]
[1762667073207,0.66425735,101880.0,101870.0,0.24577356]
[1762667074407,0.49455605,101880.0,101870.0,0.24577356]
[1762667074598,0.66425735,101880.0,101870.0,0.24577356]
[1762667075502,0.66425735,101880.0,101870.0,0.13439486]
[1762667075706,0.66425735,101880.0,101870.0,0.05864394]
[1762667075905,0.66425735,101880.0,101870.0,0.07976394]
[1762667076508,0.66425735,101880.0,101870.0,0.17796254]
[1762667077211,0.66425735,101880.0,101870.0,0.19110254]
[1762667077601,0.66425735,101880.0,101870.0,0.09290394]
[1762667077800,0.66425735,101880.0,101870.0,0.19110254]
[1762667078312,0.66425735,101880.0,101870.0,0.24395346]
[1762667080404,0.66425735,101880.0,101870.0,0.09290394]
[1762667080811,0.66425735,101880.0,101870.0,0.03723394]
[1762667081509,0.66425735,101880.0,101870.0,0.05864394]
[1762667082306,0.66425735,101880.0,101870.0,0.07976394]
[1762667082613,0.66525735,101880.0,101870.0,0.07876394]
[1762667083713,0.66525735,101880.0,101870.0,0.17696254]
[1762667084011,0.66725735,101880.0,101870.0,0.09090394]
[1762667085527,0.1336186,101870.0,101860.0,0.14629486]
[1762667085813,0.57926925,101870.0,101860.0,0.24450316]
[1762667087015,0.58026925,101870.0,101860.0,0.24450316]
[1762667090721,0.58026925,101870.0,101860.0,0.14629486]
[1762667091018,0.58026925,101870.0,101860.0,0.24450316]
[1762667093422,0.58026925,101870.0,101860.0,0.14629486]
[1762667093926,0.58026925,101870.0,101860.0,0.24450306]
[1762667094526,0.6689799,101870.0,101860.0,0.02192]
[1762667094819,0.1336282,101860.0,101850.0,0.36510839]
[1762667095019,0.6641295,101860.0,101850.0,0.36510839]
[1762667097026,0.6641295,101860.0,101850.0,0.36610839]
[1762667098422,0.6641295,101860.0,101850.0,0.21780839]
[1762667100222,0.12027065,101860.0,101850.0,0.21780839]
[1762667100423,0.5572048,101870.0,101860.0,0.1547882]
[1762667100424,0.4944186,101870.0,101860.0,0.1547882]
[1762667100630,0.21846925,101870.0,101860.0,0.23963885]
[1762667100818,0.21846925,101870.0,101860.0,0.19002214]
[1762667101930,0.12027065,101870.0,101860.0,0.19002214]
[1762667102333,0.03542,101870.0,101860.0,0.19002214]
[1762667102632,0.03642,101870.0,101860.0,0.19002214]
[1762667104332,0.1346186,101870.0,101860.0,0.19002214]
[1762667105824,0.03642,101870.0,101860.0,0.19002214]
[1762667107134,0.1346186,101870.0,101860.0,0.19002214]
[1762667108126,0.15603472,101870.0,101860.0,0.1547882]
[1762667108530,0.15603637,101870.0,101860.0,0.1547882]
[1762667109226,0.05783777,101870.0,101860.0,0.1547882]
[1762667109431,0.02241777,101870.0,101860.0,0.56843912]
[1762667109940,0.001,101870.0,101860.0,0.56843912]
[1762667110522,0.001,101870.0,101860.0,0.68159816]
[1762667111941,0.001,101870.0,101860.0,0.56843912]
[1762667112133,0.13375615,101880.0,101870.0,0.1797786]
[1762667112447,0.15516848,101880.0,101870.0,0.1797786]
[1762667112738,0.15506848,101880.0,101870.0,0.1797786]
[1762667113139,0.15506848,101880.0,101870.0,0.08158]
[1762667113331,0.15606848,101880.0,101870.0,0.08158]
[1762667114333,0.63002752,101880.0,101870.0,0.08158]
[1762667114946,0.63002752,101880.0,101870.0,0.1797786]
[1762667116551,0.63388752,101880.0,101870.0,0.04623]
[1762667116850,0.63388752,101880.0,101870.0,0.06784]
[1762667117252,0.63388752,101880.0,101870.0,0.1797786]
[1762667117651,0.63002752,101880.0,101870.0,0.1797786]
[1762667119250,0.63002752,101880.0,101870.0,0.08158]
[1762667119950,0.63002752,101880.0,101870.0,0.1797786]
[1762667122050,0.26922752,101880.0,101870.0,0.1797786]
[1762667122250,0.63002752,101880.0,101870.0,0.1797786]
[1762667123651,0.51686848,101880.0,101870.0,0.1797786]
[1762667124352,0.41867938,101880.0,101870.0,0.1797786]
[1762667125455,0.51686828,101880.0,101870.0,0.1797786]
[1762667127458,0.63002732,101880.0,101870.0,0.1797786]
[1762667130855,0.63002732,101880.0,101870.0,0.08158]
[1762667131052,0.63002732,101880.0,101870.0,0.1797786]
[1762667131851,0.51686828,101880.0,101870.0,0.1797786]
[1762667132048,0.63002732,101880.0,101870.0,0.1797786]
[1762667134459,0.63002732,101880.0,101870.0,0.06784]
[1762667134658,0.74318636,101880.0,101870.0,0.04623]
[1762667134958,0.66527733,101880.0,101870.0,0.025]
[1762667135655,0.71811828,101880.0,101870.0,0.025]
[1762667136166,0.55211829,101880.0,101870.0,0.1807986]
[1762667136755,0.66527733,101880.0,101870.0,0.1807986]
[1762667137061,0.71811828,101880.0,101870.0,0.025]
[1762667141263,0.71811828,101880.0,101870.0,0.06919]
[1762667147265,0.66527733,101880.0,101870.0,0.06919]
[1762667147464,0.71811828,101880.0,101870.0,0.06919]
[1762667148070,0.71811828,101880.0,101870.0,0.025]
[1762667148274,0.83027732,101880.0,101870.0,0.025]
[1762667148568,0.83227732,101880.0,101870.0,0.025]
[1762667148965,0.72011828,101880.0,101870.0,0.025]
[1762667151263,0.83327732,101880.0,101870.0,0.025]
[1762667152168,0.1336282,101860.0,101850.0,0.15711735]
[1762667152363,0.62899957,101860.0,101850.0,0.15711735]
[1762667153266,0.62899957,101860.0,101850.0,0.15811735]
[1762667153472,0.62899957,101860.0,101850.0,0.15911735]
[1762667154266,0.26819957,101860.0,101850.0,0.15911735]
[1762667154468,0.15504053,101860.0,101850.0,0.15911735]
[1762667156178,0.51584053,101860.0,101850.0,0.15911735]
[1762667157478,0.62899957,101860.0,101850.0,0.15911735]
[1762667160574,0.26819957,101860.0,101850.0,0.15911735]
[1762667161473,0.62899957,101860.0,101850.0,0.15911735]
[1762667161668,0.62899957,101860.0,101850.0,0.15912495]
[1762667161875,0.62898277,101860.0,101850.0,0.15912495]
[1762667163182,0.62898277,101860.0,101850.0,0.06090705]
[1762667164377,0.68566229,101860.0,101850.0,0.06090705]
[1762667169682,0.68564851,101860.0,101850.0,0.06090705]
[1762667171984,0.68564851,101860.0,101850.0,0.15912495]
[1762667174577,0.51580995,101860.0,101850.0,0.15912495]
[1762667174778,0.68564851,101860.0,101850.0,0.15912495]
[1762667175491,0.68564851,101860.0,101850.0,0.06090705]
[1762667175988,0.68564851,101860.0,101850.0,0.15912495]
[1762667176187,0.68564851,101860.0,101850.0,0.06090705]
[1762667176983,0.68564851,101860.0,101850.0,0.15912495]
[1762667177483,0.68564919,101860.0,101850.0,0.06090705]
[1762667178186,0.68564919,101860.0,101850.0,0.15912495]
[1762667178483,0.68564919,101860.0,101850.0,0.06090705]
[1762667178689,0.68564919,101860.0,101850.0,0.15912495]
[1762667179391,0.68564919,101860.0,101850.0,0.06090705]
[1762667179890,0.68564919,101860.0,101850.0,0.15912495]
[1762667180789,0.68564919,101860.0,101850.0,0.06090705]
[1762667181391,0.68564919,101860.0,101850.0,0.15912495]
[1762667181892,0.68564919,101860.0,101850.0,0.06090705]
[1762667183180,0.68564919,101860.0,101850.0,0.15912495]
[1762667183585,0.68564919,101860.0,101850.0,0.06090705]
[1762667184684,0.68564919,101860.0,101850.0,0.15912495]
[1762667184881,0.68564919,101860.0,101850.0,0.06090705]
[1762667185186,0.68564919,101860.0,101850.0,0.15912495]
[1762667191398,0.14172171,101860.0,101850.0,0.51992495]
[1762667192396,0.23992991,101860.0,101850.0,0.15912495]
[1762667193391,0.23992991,101860.0,101850.0,0.21197587]
[1762667194992,0.14172171,101860.0,101850.0,0.21197587]
[1762667195999,0.23992991,101860.0,101850.0,0.21197587]
[1762667196802,0.23992991,101860.0,101850.0,0.15912495]
[1762667197001,0.32484919,101860.0,101850.0,0.15912495]
[1762667197500,0.20893099,101860.0,101850.0,0.15912495]
[1762667197993,0.12401171,101860.0,101850.0,0.15912495]
[1762667200499,0.12401171,101860.0,101850.0,0.51992495]
[1762667200802,0.12401171,101860.0,101850.0,0.57277587]
[1762667201600,0.12401171,101860.0,101850.0,0.21197587]
[1762667201805,0.22221991,101860.0,101850.0,0.21197587]
[1762667202103,0.22221991,101860.0,101850.0,0.15912495]
[1762667202703,0.12401171,101860.0,101850.0,0.15912495]
[1762667204701,0.22221991,101860.0,101850.0,0.15912495]
[1762667205201,0.12401171,101860.0,101850.0,0.15912495]
[1762667205405,0.59679618,101880.0,101870.0,0.05751]
[1762667205406,0.39609706,101880.0,101870.0,0.05751]
[1762667205608,4.705e-05,101880.0,101870.0,0.65434916]
[1762667206095,4.705e-05,101880.0,101870.0,0.68957919]
[1762667206499,4.705e-05,101880.0,101870.0,0.65434916]
[1762667206705,0.00304705,101880.0,101870.0,0.65434916]
[1762667207099,0.00304705,101880.0,101870.0,0.68955072]
[1762667207697,4.705e-05,101880.0,101870.0,0.69155072]
[1762667208100,4.705e-05,101880.0,101870.0,0.63862944]
[1762667208816,4.705e-05,101880.0,101870.0,0.71875524]
[1762667213311,0.08491928,101900.0,101890.0,0.1556893]
[1762667213710,0.18308898,101900.0,101890.0,0.1556893]
[1762667213915,0.54388898,101900.0,101890.0,0.1556893]
[1762667214112,0.18308898,101900.0,101890.0,0.1556893]
[1762667214504,0.54588898,101900.0,101890.0,0.1556893]
[1762667214711,0.4609697,101900.0,101890.0,0.1556893]
[1762667214914,0.54588898,101900.0,101890.0,0.1556893]
[1762667215413,0.54688898,101900.0,101890.0,0.1556893]
[1762667217320,0.63180826,101900.0,101890.0,0.1556893]
[1762667217612,0.63180826,101900.0,101890.0,0.05751]
[1762667221218,0.63180826,101900.0,101890.0,0.1556893]
[1762667221418,0.63180826,101900.0,101890.0,0.05751]
[1762667223621,0.63180826,101900.0,101890.0,0.1556893]
[1762667224413,0.5751008,101900.0,101890.0,0.1556893]
[1762667225725,0.5751008,101900.0,101890.0,0.05751]
[1762667228728,0.0981793,101890.0,101880.0,0.03572705]
[1762667228930,0.5721104,101890.0,101880.0,0.15638595]
[1762667229525,0.5721104,101890.0,101880.0,0.05819705]
[1762667229921,0.5721104,101890.0,101880.0,0.15638595]
[1762667230132,0.5731104,101890.0,101880.0,0.15638595]
[1762667231729,0.5741104,101890.0,101880.0,0.15638595]
[1762667231922,0.5731104,101890.0,101880.0,0.15638595]
[1762667232130,0.5751104,101890.0,101880.0,0.15638595]
[1762667232823,0.5741104,101890.0,101880.0,0.05819705]
[1762667233024,0.5721104,101890.0,101880.0,0.05819705]
[1762667233329,0.5731104,101890.0,101880.0,0.05819705]
[1762667235228,0.5731104,101890.0,101880.0,0.09339861]
[1762667238335,0.5731104,101890.0,101880.0,0.05819705]
[1762667241832,0.5731104,101890.0,101880.0,0.03534861]
[1762667242038,0.66120136,101890.0,101880.0,0.00014705]
[1762667243040,0.68277884,101890.0,101880.0,0.00014705]
[1762667244443,0.68277884,101890.0,101880.0,0.05853705]
[1762667244843,0.68277884,101890.0,101880.0,0.03606705]
[1762667245940,0.68277884,101890.0,101880.0,0.05853705]
[1762667246947,0.68277884,101890.0,101880.0,0.00014705]
[1762667247543,0.56964774,101890.0,101880.0,0.05705705]
[1762667247846,0.68277884,101890.0,101880.0,0.05705705]
[1762667250843,0.68277884,101890.0,101880.0,0.03582705]
[1762667251453,0.32197884,101890.0,101880.0,0.03582705]
[1762667251750,1.04357884,101890.0,101880.0,0.03582705]
[1762667252252,1.04357884,101890.0,101880.0,0.05705705]
[1762667252442,0.99073789,101890.0,101880.0,0.05705705]
[1762667254753,0.89255859,101890.0,101880.0,0.15524595]
[1762667255053,0.77942749,101890.0,101880.0,0.15524595]
[1762667256151,0.89255859,101890.0,101880.0,0.15524595]
[1762667257950,0.13570858,101890.0,101880.0,0.15524595]
[1762667258256,0.02257748,101890.0,101880.0,0.15524595]
[1762667259254,0.02257748,101890.0,101880.0,0.51604595]
[1762667260357,0.001,101890.0,101880.0,0.56896723]
[1762667260557,0.001,101890.0,101880.0,0.56996723]
[1762667261155,0.61737695,101910.0,101900.0,0.05691]
[1762667261356,0.63894647,101910.0,101900.0,0.1550797]
[1762667261960,0.62905768,101910.0,101900.0,0.1550797]
[1762667262161,0.41776658,101910.0,101900.0,0.1550797]
[1762667262360,0.38251657,101910.0,101900.0,0.1550797]
[1762667262756,0.49664767,101910.0,101900.0,0.1550797]
[1762667262966,0.59480767,101910.0,101900.0,0.05691]
[1762667263467,0.59480767,101910.0,101900.0,0.1550797]
[1762667263668,0.59680767,101910.0,101900.0,0.1550797]
[1762667264164,0.49864767,101910.0,101900.0,0.1550797]
[1762667266271,0.38551657,101910.0,101900.0,0.1550797]
[1762667268669,0.38451657,101910.0,101900.0,0.1550797]
[1762667269268,0.49764767,101910.0,101900.0,0.1550797]
[1762667269468,0.49564767,101910.0,101900.0,0.1550797]
[1762667269772,0.49664767,101910.0,101900.0,0.1550797]
[1762667270173,0.03525001,101940.0,101900.0,1.4743308]
[1762667270366,0.2112623,101940.0,101930.0,0.1575008]
[1762667270564,0.1131311,101940.0,101930.0,0.5183008]
[1762667271461,0.50932816,101950.0,101940.0,0.1574912]
[1762667271763,0.60744966,101950.0,101940.0,0.05936]
[1762667272367,0.60744966,101950.0,101940.0,0.1574912]
[1762667272670,0.60944966,101950.0,101940.0,0.05936]
[1762667273274,0.61244966,101950.0,101940.0,0.05936]
[1762667273771,0.57719965,101950.0,101940.0,0.05936]
[1762667276665,0.57719965,101950.0,101940.0,0.1574912]
[1762667276666,0.46406855,101950.0,101940.0,0.1574912]
[1762667276974,0.57719965,101950.0,101940.0,0.05936]
[1762667279077,0.0981312,101940.0,101930.0,0.05842]
[1762667279280,0.0981312,101940.0,101920.0,0.5512758]
[1762667279281,0.0981408,101930.0,101920.0,0.497648]
[1762667279480,0.2112719,101930.0,101920.0,0.05856705]
[1762667279977,0.1131311,101930.0,101920.0,0.15671745]
[1762667280472,0.2112719,101930.0,101920.0,0.05856705]
[1762667280684,0.1131311,101930.0,101920.0,0.15671755]
[1762667281678,0.1151311,101940.0,101930.0,0.1552708]
[1762667281971,0.11327815,101950.0,101940.0,0.1552612]
[1762667282172,0.00014705,101950.0,101940.0,0.1552612]
[1762667282566,0.02152361,101950.0,101940.0,0.1552612]
[1762667282976,0.02152361,101950.0,101940.0,0.5160612]
[1762667284176,0.13465471,101950.0,101940.0,0.5160612]
[1762667284375,0.23277631,101950.0,101940.0,0.05713]
[1762667284778,0.59657631,101950.0,101940.0,0.05713]
[1762667285383,0.23777631,101950.0,101940.0,0.05713]
[1762667285769,0.59857631,101950.0,101940.0,0.05713]
[1762667286286,0.50045471,101950.0,101940.0,0.1552612]
[1762667286477,0.1112937,101950.0,101940.0,0.1552612]
[1762667286981,0.1112937,101950.0,101940.0,0.5160612]
[1762667289685,0.2094153,101950.0,101940.0,0.5160612]
[1762667290184,0.2094153,101950.0,101940.0,0.1552612]
[1762667290585,0.1112937,101950.0,101940.0,0.5160612]
[1762667293277,0.2094153,101950.0,101940.0,0.5160612]
[1762667293477,0.2094153,101950.0,101940.0,0.05713]
[1762667295486,0.24466531,101950.0,101940.0,0.05713]
[1762667295682,0.24466531,101950.0,101940.0,0.1552612]
[1762667295888,0.24466531,101950.0,101940.0,0.05713]
[1762667298691,0.24466531,101950.0,101940.0,0.1552612]
[1762667299391,0.29750626,101950.0,101940.0,0.1552612]
[1762667300083,0.29750626,101950.0,101940.0,0.05713]
[1762667301182,0.65830626,101950.0,101940.0,0.05713]
[1762667303487,0.19938466,101950.0,101940.0,0.5160613]
[1762667303792,0.14654371,101950.0,101940.0,0.5160613]
[1762667306995,0.14654371,101950.0,101940.0,0.05713]
[1762667306996,0.65498549,101950.0,101940.0,0.05713]
[1762667307189,0.6902355,101950.0,101940.0,0.05713]
[1762667307892,0.0981313,101940.0,101930.0,0.05722]
[1762667308094,0.78756765,101940.0,101930.0,0.05722]
[1762667308691,0.70279756,101940.0,101930.0,0.05722]
[1762667309200,0.70379756,101940.0,101930.0,0.05722]
[1762667309996,0.70579756,101940.0,101930.0,0.05722]
[1762667312204,0.74107692,101940.0,101930.0,0.05722]
[1762667313299,0.6881274,101940.0,101930.0,0.1553609]
[1762667313501,0.64294562,101940.0,101930.0,0.1553609]
[1762667313700,0.74107682,101940.0,101930.0,0.1553609]
[1762667314795,0.74107682,101940.0,101930.0,0.05722]
[1762667317800,0.70579746,101940.0,101930.0,0.05722]
[1762667318111,0.6844209,101940.0,101930.0,0.05722]
[1762667318304,0.71967774,101940.0,101930.0,0.05722]
[1762667319998,0.35887774,101940.0,101930.0,0.1553609]
[1762667321105,0.66672822,101940.0,101930.0,0.05722]
[1762667323507,0.63147138,101940.0,101930.0,0.05722]
[1762667326403,0.63147138,101940.0,101930.0,0.155361]
[1762667327004,0.63147138,101940.0,101930.0,0.05722]
[1762667327405,0.66672822,101940.0,101930.0,0.05722]
[1762667328903,0.81439247,101940.0,101930.0,0.05722]
[1762667331508,0.86734199,101940.0,101930.0,0.05722]
[1762667333404,0.95211208,101940.0,101920.0,0.01404705]
[1762667333614,0.95211208,101940.0,101920.0,0.05992705]
[1762667333615,0.62848118,101930.0,101920.0,0.05992705]
[1762667333801,0.66373802,101930.0,101920.0,0.05992705]
[1762667334001,0.81011248,101930.0,101920.0,0.15807765]
[1762667334201,0.44931248,101930.0,101920.0,0.15807765]
[1762667334808,0.08477009,101930.0,101920.0,0.51887765]
[1762667335014,0.18291099,101930.0,101920.0,0.51887765]
[1762667335712,0.18291099,101930.0,101920.0,0.42072705]
[1762667335909,0.18291099,101930.0,101920.0,0.05992705]
[1762667336314,0.21816783,101930.0,101920.0,0.05992705]
[1762667337008,0.81027638,101930.0,101920.0,0.05992705]
[1762667337513,0.8632259,101930.0,101920.0,0.05992705]
[1762667338314,0.8662259,101930.0,101920.0,0.05992705]
[1762667340415,0.8662259,101930.0,101920.0,0.01404705]
[1762667340626,0.8662259,101930.0,101920.0,0.00014705]
[1762667342415,0.8662259,101930.0,101920.0,0.02276705]
[1762667343020,0.8662259,101930.0,101920.0,0.00014705]
[1762667344419,0.8662259,101930.0,101920.0,0.02276705]
[1762667344716,0.8662259,101930.0,101920.0,0.00014705]
[1762667345025,0.84840919,101930.0,101920.0,0.00014705]
[1762667345616,0.0981607,101910.0,101900.0,0.05948]
[1762667345920,0.62850088,101910.0,101900.0,0.05948]
[1762667346815,0.54373079,101910.0,101900.0,0.1586504]
[1762667347016,0.26770088,101910.0,101900.0,0.1586504]
[1762667347217,0.08477009,101910.0,101900.0,0.1586504]
[1762667347418,0.08477009,101910.0,101900.0,0.5194504]
[1762667348131,0.08477009,101910.0,101900.0,0.5204504]
[1762667348430,0.6074999,101920.0,101910.0,0.1571308]
[1762667349419,0.6074999,101920.0,101910.0,0.05897]
[1762667352029,0.6074999,101920.0,101910.0,0.1571308]
[1762667354626,0.2466999,101920.0,101910.0,0.1571308]
[1762667355730,0.6074999,101920.0,101910.0,0.1571308]
[1762667357230,0.2466999,101920.0,101910.0,0.1571308]
[1762667363937,0.6074999,101920.0,101910.0,0.1571308]
[1762667364431,0.2466999,101920.0,101910.0,0.1571308]
[1762667366432,0.03545441,101920.0,101910.0,0.5179308]
[1762667366627,0.00014705,101920.0,101910.0,0.5179308]
[1762667368436,0.00014705,101920.0,101910.0,0.55307952]
[1762667374742,0.00014705,101920.0,101910.0,0.5179308]
[1762667376445,0.2994946,101940.0,101930.0,0.1545412]
[1762667376745,0.24653355,101940.0,101930.0,0.1545412]
[1762667377136,0.13344466,101940.0,101930.0,0.5153412]
[1762667377642,0.13544466,101940.0,101930.0,0.5153412]
[1762667378833,0.25153355,101940.0,101930.0,0.5153412]
[1762667379338,0.24953355,101940.0,101930.0,0.5153412]
[1762667380142,0.21422619,101940.0,101930.0,0.5153412]
[1762667383244,0.61033355,101940.0,101930.0,0.0564]
[1762667383643,0.61033355,101940.0,101930.0,0.1545412]
[1762667384641,0.61033355,101940.0,101930.0,0.0564]
[1762667384848,0.61033355,101940.0,101930.0,0.1545412]
[1762667386747,0.24953355,101940.0,101930.0,0.1545412]
[1762667386943,0.61033355,101940.0,101930.0,0.1545412]
[1762667388144,0.24953355,101940.0,101930.0,0.1545412]
[1762667389539,0.61033355,101940.0,101930.0,0.1545412]
[1762667391949,0.24953355,101940.0,101930.0,0.1545412]
[1762667394948,0.15139625,101940.0,101930.0,0.1545412]
[1762667395149,0.24952785,101940.0,101930.0,0.1545412]
[1762667395347,0.15139625,101940.0,101930.0,0.1545412]
[1762667395537,0.11608889,101940.0,101930.0,0.5153412]
[1762667395847,0.003,101940.0,101930.0,0.5153412]
[1762667396251,0.03545441,101950.0,101940.0,0.1535516]
[1762667396453,0.00014705,101950.0,101940.0,0.5143516]
[1762667397042,0.00014705,101950.0,101940.0,0.54950032]
[1762667397242,0.00014705,101950.0,101940.0,0.5143516]
[1762667397443,0.00214705,101950.0,101940.0,0.5143516]
[1762667398046,0.00214705,101950.0,101940.0,0.54950032]
[1762667398352,0.00114705,101950.0,101940.0,0.54950032]
[1762667398953,0.00214705,101950.0,101940.0,0.54950032]
[1762667399549,0.11308889,101960.0,101950.0,0.153542]
[1762667399754,0.11308889,101960.0,101950.0,0.514342]
[1762667400253,0.24650555,101970.0,101960.0,0.1535324]
[1762667400953,0.21119819,101970.0,101960.0,0.1535324]
[1762667401144,0.21119819,101970.0,101960.0,0.5143324]
[1762667401553,0.21419819,101970.0,101960.0,0.05542]
[1762667401853,0.57499819,101970.0,101960.0,0.05542]
[1762667402257,0.57199819,101970.0,101960.0,0.05542]
[1762667402442,0.57299819,101970.0,101960.0,0.05542]
[1762667403758,0.60830555,101970.0,101960.0,0.05542]
[1762667405455,0.57299819,101970.0,101960.0,0.05542]
[1762667405757,0.60830555,101970.0,101960.0,0.05542]
[1762667405942,0.6612666,101970.0,101960.0,0.05542]
[1762667406143,0.80769292,101970.0,101960.0,0.05542]
[1762667406348,0.80769292,101970.0,101950.0,0.01317705]
[1762667406349,0.0981123,101960.0,101950.0,0.05556705]
[1762667406549,0.72039744,101960.0,101950.0,0.05556705]
[1762667406859,0.91978481,101960.0,101950.0,0.00014705]
[1762667407356,0.88447745,101960.0,101950.0,0.00014705]
[1762667407559,0.88447745,101960.0,101950.0,0.02249705]
[1762667408359,0.91265074,101960.0,101950.0,0.05656705]
[1762667408552,0.91265074,101960.0,101950.0,0.05756705]
[1762667409556,0.91265074,101960.0,101950.0,0.05656705]
[1762667409762,0.91465074,101960.0,101950.0,0.05556705]
[1762667409962,0.91565074,101960.0,101950.0,0.05556705]
[1762667412264,1.27645074,101960.0,101950.0,0.05556705]
[1762667413467,1.27645074,101960.0,101950.0,0.00014705]
[1762667413667,0.098122,101950.0,101940.0,0.03438]
[1762667413870,0.0981316,101940.0,101930.0,0.05528]
[1762667414166,0.74850499,101940.0,101930.0,0.05528]
[1762667414358,0.0981412,101930.0,101920.0,0.05542]
[1762667414663,0.62850858,101930.0,101920.0,0.1535708]
[1762667414859,0.62850858,101930.0,101920.0,0.05542]
[1762667415569,0.62850858,101930.0,101920.0,0.05742]
[1762667416560,0.26770858,101930.0,101920.0,0.05742]
[1762667416760,0.62850858,101930.0,101920.0,0.05742]
[1762667418456,0.62950858,101930.0,101920.0,0.05542]
[1762667419271,0.62950858,101930.0,101920.0,0.1535708]
[1762667422172,0.62950858,101930.0,101920.0,0.05542]
[1762667425173,0.26870858,101930.0,101920.0,0.05542]
[1762667425374,0.62950858,101930.0,101920.0,0.05542]
[1762667436180,0.6647309,101930.0,101920.0,0.05542]
[1762667436591,0.3039309,101930.0,101920.0,0.05542]
[1762667437292,0.6647309,101930.0,101920.0,0.05542]
[1762667439485,0.3039309,101930.0,101920.0,0.05542]
[1762667439694,0.6647309,101930.0,101920.0,0.05542]
[1762667440087,0.3039309,101930.0,101920.0,0.05542]
[1762667440288,0.6647309,101930.0,101920.0,0.05542]
[1762667442293,0.71769195,101930.0,101920.0,0.05542]
[1762667443590,0.68246963,101930.0,101920.0,0.05542]
[1762667444497,0.68246963,101930.0,101920.0,0.1535708]
[1762667444899,0.32166963,101930.0,101920.0,0.1535708]
[1762667445094,0.68246963,101930.0,101920.0,0.05542]
[1762667446200,0.32166963,101930.0,101920.0,0.1535708]
[1762667446400,0.68246963,101930.0,101920.0,0.1535708]
[1762667447300,0.68246963,101930.0,101920.0,0.05542]
[1762667449508,0.32166963,101930.0,101920.0,0.05542]
[1762667449709,0.68246963,101930.0,101920.0,0.05542]
[1762667453611,0.71781886,101930.0,101920.0,0.05542]
[1762667460519,0.71781886,101930.0,101920.0,0.1535708]
[1762667462315,0.71781886,101930.0,101920.0,0.05542]
[1762667463021,0.71781886,101930.0,101920.0,0.1535708]
[1762667466720,0.35701886,101930.0,101920.0,0.1535708]
[1762667467615,0.001,101930.0,101920.0,0.87958321]
[1762667467806,0.08578369,101930.0,101920.0,0.93250449]
[1762667468009,0.18392489,101930.0,101920.0,0.68722449]
[1762667468205,0.18392489,101930.0,101920.0,0.6024408]
[1762667468405,0.0991412,101930.0,101920.0,0.6024408]
[1762667469122,0.0991412,101930.0,101920.0,0.54951952]
[1762667470814,0.21217348,101930.0,101920.0,0.45136872]
[1762667471014,0.21217348,101930.0,101920.0,0.54951952]
[1762667474111,0.11403228,101930.0,101920.0,0.54951952]
[1762667474311,0.21217348,101930.0,101920.0,0.54951952]
[1762667475817,0.14830601,101960.0,101950.0,0.154002]
[1762667476023,0.11303228,101960.0,101950.0,0.514802]
[1762667476712,0.21114458,101960.0,101950.0,0.514802]
[1762667476912,0.60730965,101970.0,101960.0,0.1539923]
[1762667477423,0.57203592,101970.0,101960.0,0.1539923]
[1762667478526,0.57403592,101970.0,101960.0,0.1539923]
[1762667479432,0.57503592,101970.0,101960.0,0.1539923]
[1762667481623,0.21423592,101970.0,101960.0,0.1539923]
[1762667483828,0.57503592,101970.0,101960.0,0.05588]
[1762667487732,0.0981123,101960.0,101950.0,0.05759]
[1762667487930,0.21114458,101960.0,101950.0,0.05759]
[1762667492529,0.57194458,101960.0,101950.0,0.05759]
[1762667493034,0.4589123,101960.0,101950.0,0.05759]
[1762667493230,0.57194458,101960.0,101950.0,0.155712]
[1762667493434,0.57194458,101960.0,101950.0,0.05759]
[1762667493825,0.57194458,101960.0,101950.0,0.155712]
[1762667494736,0.21114458,101960.0,101950.0,0.155712]
[1762667495034,0.57194458,101960.0,101950.0,0.155712]
[1762667495231,0.57194458,101960.0,101950.0,0.05759]
[1762667501236,0.60721831,101960.0,101950.0,0.05759]
[1762667502027,0.60721831,101960.0,101950.0,0.155712]
[1762667503634,0.57194458,101960.0,101950.0,0.155712]
[1762667504337,0.60721831,101960.0,101950.0,0.155712]
[1762667505532,0.60721831,101960.0,101950.0,0.05759]
[1762667506240,0.60721831,101960.0,101950.0,0.155712]
[1762667507235,0.60721831,101960.0,101950.0,0.05759]
[1762667511445,0.60721831,101960.0,101950.0,0.155712]
[1762667512444,0.60721831,101960.0,101950.0,0.05759]
[1762667512944,0.60721831,101960.0,101950.0,0.155712]
[1762667514431,0.24641831,101960.0,101950.0,0.155712]
[1762667514636,0.60721831,101960.0,101950.0,0.155712]
[1762667516744,0.60721831,101960.0,101950.0,0.05759]
[1762667517244,0.66017936,101960.0,101950.0,0.05759]
[1762667517637,0.66017936,101960.0,101950.0,0.155712]
[1762667518139,0.14830601,101960.0,101950.0,0.155712]
[1762667518336,0.14830601,101960.0,101950.0,0.55167864]
[1762667518840,0.24641831,101960.0,101950.0,0.55167864]
[1762667519247,0.24641831,101960.0,101950.0,0.516512]
[1762667522752,0.03527373,101960.0,101950.0,0.55167864]